fUSD/lending_fUSD_20260425
["ID","MTS","AMOUNT","RATE_DAILY","PERIOD"]
[421112638,1777073431896,-500.0,8.496e-05,2]
[421112639,1777073431906,-500.0,8.496e-05,2]
[421112640,1777073431915,-500.0,8.496e-05,2]
[421112641,1777073431926,-500.0,8.496e-05,2]
[421112642,1777073431935,-500.0,8.496e-05,2]
[421112643,1777073431945,-500.0,8.496e-05,2]
[421112644,1777073431955,-500.0,8.496e-05,2]
[421112645,1777073431964,-500.0,8.496e-05,2]
[421112646,1777073431973,-500.0,8.496e-05,2]
[421112647,1777073431982,-500.0,8.496e-05,2]
[421112649,1777073431992,-500.0,8.496e-05,2]
[421112650,1777073432001,-500.0,8.496e-05,2]
[421112652,1777073432010,-500.0,8.496e-05,2]
[421112654,1777073432019,-500.0,8.496e-05,2]
[421112656,1777073432028,-500.0,8.496e-05,2]
[421112658,1777073432037,-500.0,8.496e-05,2]
[421112659,1777073432046,-500.0,8.496e-05,2]
[421112660,1777073432056,-500.0,8.496e-05,2]
[421112661,1777073432066,-500.0,8.496e-05,2]
[421112662,1777073432076,-500.0,8.496e-05,2]
[421112663,1777073432087,-500.0,8.496e-05,2]
[421112664,1777073432096,-500.0,8.496e-05,2]
[421112665,1777073432106,-500.0,8.496e-05,2]
[421112666,1777073432115,-500.0,8.496e-05,2]
[421112667,1777073432125,-500.0,8.496e-05,2]
[421112668,1777073432134,-500.0,8.496e-05,2]
[421112669,1777073432145,-500.0,8.496e-05,2]
[421112670,1777073432155,-500.0,8.496e-05,2]
[421112671,1777073432165,-500.0,8.496e-05,2]
[421112672,1777073432174,-500.0,8.496e-05,2]
[421112673,1777073432183,-500.0,8.496e-05,2]
[421112674,1777073432193,-500.0,8.496e-05,2]
[421112675,1777073432203,-500.0,8.496e-05,2]
[421112676,1777073432212,-500.0,8.496e-05,2]
[421112677,1777073432223,-623.18964509,8.496e-05,2]
[421112678,1777073432232,-500.0,8.496e-05,2]
[421112679,1777073432242,-500.0,8.496e-05,2]
[421112680,1777073432251,-500.0,8.496e-05,2]
[421112681,1777073432261,-500.0,8.496e-05,2]
[421112682,1777073432272,-816.62077568,8.496e-05,2]
[421112683,1777073432281,-816.62077568,8.496e-05,2]
[421112684,1777073432291,-816.62077568,8.496e-05,2]
[421112685,1777073432302,-816.62077568,8.496e-05,2]
[421112686,1777073432311,-816.62077568,8.496e-05,2]
[421112687,1777073432320,-816.62077568,8.496e-05,2]
[421112688,1777073432329,-816.62077568,8.496e-05,2]
[421112689,1777073432340,-816.62077568,8.496e-05,2]
[421112690,1777073432351,-816.62077568,8.496e-05,2]
[421112691,1777073432361,-816.62077568,8.496e-05,2]
[421112692,1777073432371,-816.62077568,8.496e-05,2]
[421112693,1777073432381,-816.62077568,8.496e-05,2]
[421112694,1777073432391,-816.62077568,8.496e-05,2]
[421112695,1777073432401,-816.62077568,8.496e-05,2]
[421112696,1777073432411,-816.62077568,8.496e-05,2]
[421112697,1777073432420,-816.62077568,8.496e-05,2]
[421112698,1777073432431,-816.62077568,8.496e-05,2]
[421112699,1777073432441,-816.62077568,8.496e-05,2]
[421112700,1777073432450,-816.62077568,8.496e-05,2]
[421112701,1777073432460,-816.62077568,8.496e-05,2]
[421112702,1777073432469,-816.62077568,8.496e-05,2]
[421112703,1777073432479,-816.62077568,8.496e-05,2]
[421112704,1777073432488,-816.62077568,8.496e-05,2]
[421112705,1777073432498,-816.62077568,8.496e-05,2]
[421112706,1777073432508,-816.62077568,8.496e-05,2]
[421112707,1777073432517,-816.62077568,8.496e-05,2]
[421112708,1777073432527,-816.62077568,8.496e-05,2]
[421112709,1777073432537,-816.62077568,8.496e-05,2]
[421112710,1777073432546,-816.62077568,8.496e-05,2]
[421112711,1777073432556,-816.62077568,8.496e-05,2]
[421112712,1777073432565,-816.62077568,8.496e-05,2]
[421112713,1777073432575,-816.62077568,8.496e-05,2]
[421112714,1777073432585,-796.2052563,8.496e-05,2]
[421112715,1777073432896,-796.2052563,8.496e-05,2]
[421112716,1777073432943,-796.2052563,8.496e-05,2]
[421112717,1777073432952,-796.2052563,8.496e-05,2]
[421112718,1777073432962,-796.2052563,8.496e-05,2]
[421112719,1777073432971,-796.2052563,8.496e-05,2]
[421112720,1777073432980,-796.2052563,8.496e-05,2]
[421112721,1777073432989,-796.2052563,8.496e-05,2]
[421112722,1777073432999,-796.2052563,8.496e-05,2]
[421112723,1777073433009,-796.2052563,8.496e-05,2]
[421112724,1777073433018,-796.2052563,8.496e-05,2]
[421112725,1777073433027,-796.2052563,8.496e-05,2]
[421112726,1777073433036,-250.0,8.496e-05,2]
[421112727,1777073433045,-14022.06419809,8.497e-05,2]
[421112728,1777073433058,-10739.39764393,8.497e-05,2]
[421112729,1777073433073,-2419.58059293,8.497e-05,2]
[421112730,1777073433084,-2111.78030549,8.497e-05,2]
[421112731,1777073433099,-26705.62934489,8.497e-05,2]
[421112732,1777073433110,-900.0,8.497e-05,2]
[421112735,1777073437728,-301.76454383,8.497e-05,2]
[421112770,1777073438761,-46325.03944314,8.497e-05,2]
[421112772,1777073438772,-14860.68728384,8.497e-05,2]
[421112773,1777073438784,-1496.13372,8.497e-05,2]
[421112774,1777073438795,-39132.88238231,8.497e-05,2]
[421112776,1777073440156,-340.51469839,8.497e-05,2]
[421112778,1777073440555,-836.81918782,8.497e-05,2]
[421112789,1777073445944,-11063.5453935,8.497e-05,2]
[421112790,1777073445956,-1308484.84850824,8.497e-05,2]
[421112791,1777073445967,-612839.37345256,8.497e-05,2]
[421112792,1777073446001,-444.27104368,8.497e-05,2]
[421112793,1777073446059,-1143.17614368,8.497e-05,2]
[421112807,1777073535058,-233.61,8.455e-05,2]
[421112808,1777073535090,-355.71287276,8.496e-05,2]
[421112809,1777073535118,-755.40294368,8.496e-05,2]
[421112810,1777073535147,-300.0,8.496e-05,2]
[421112811,1777073535238,-6710.55836712,8.497e-05,2]
[421112812,1777073537964,-10000.01,8.497e-05,2]
[421112813,1777073999265,-280.0,8.219e-05,2]
[421112814,1777073999293,-1876.3793,8.397e-05,2]
[421112815,1777073999328,-5687.2514,8.397e-05,2]
[421112816,1777073999452,-2000.0,8.48e-05,2]
[421112817,1777073999483,-1200.0,8.495e-05,2]
[421112818,1777073999511,-150.0,8.495e-05,2]
[421112819,1777073999541,-1000.0,8.496e-05,2]
[421112820,1777073999578,-500.0,8.496e-05,2]
[421112821,1777073999683,-500.0,8.496e-05,2]
[421112822,1777073999718,-500.0,8.496e-05,2]
[421112823,1777073999752,-500.0,8.496e-05,2]
[421112824,1777073999786,-500.0,8.496e-05,2]
[421112825,1777073999818,-500.0,8.496e-05,2]
[421112826,1777073999851,-500.0,8.496e-05,2]
[421112827,1777073999883,-500.0,8.496e-05,2]
[421112828,1777073999917,-500.0,8.496e-05,2]
[421112829,1777073999950,-500.0,8.496e-05,2]
[421112830,1777073999983,-500.0,8.496e-05,2]
[421112831,1777074000202,-300.01,8.496e-05,2]
[421112832,1777074000217,-0.01,8.496e-05,2]
[421112837,1777074631858,-300.0,7.544e-05,2]
[421112838,1777074631867,-983.59230351,7.544e-05,2]
[421112839,1777074631964,-216.40769649,7.544e-05,2]
[421112840,1777074631973,-300.0,7.544e-05,2]
[421112841,1777074631983,-150.0,7.545e-05,2]
[421112842,1777074631992,-150.0,7.545e-05,2]
[421112843,1777074632001,-150.30013951,7.545e-05,2]
[421112844,1777074632011,-150.0,7.545e-05,2]
[421112845,1777074632020,-26.68507966,7.545e-05,2]
[421112847,1777074632108,-123.31492034,7.545e-05,2]
[421112848,1777074632118,-150.0,7.545e-05,2]
[421112849,1777074632127,-150.0,7.545e-05,2]
[421112851,1777074632137,-150.0,7.545e-05,2]
[421112852,1777074632146,-150.0,7.545e-05,2]
[421112853,1777074632156,-150.0,7.545e-05,2]
[421112854,1777074632165,-150.0,7.545e-05,2]
[421112855,1777074632174,-150.0,7.577e-05,2]
[421112856,1777074632184,-150.0,7.61e-05,2]
[421112858,1777074632193,-150.0,7.61e-05,2]
[421112859,1777074632202,-150.0,7.629e-05,2]
[421112860,1777074632211,-150.0,7.638e-05,2]
[421112861,1777074632221,-150.0,7.642e-05,2]
[421112862,1777074632230,-150.0,7.674e-05,2]
[421112863,1777074632240,-150.0,7.674e-05,2]
[421112864,1777074632249,-150.0,7.706e-05,2]
[421112865,1777074632258,-150.0,7.713e-05,2]
[421112866,1777074632267,-150.0,7.732e-05,2]
[421112868,1777074632276,-150.0,7.739e-05,2]
[421112870,1777074632285,-150.0,7.739e-05,2]
[421112872,1777074632295,-150.0,7.755e-05,2]
[421112874,1777074632304,-150.0,7.771e-05,2]
[421112876,1777074632313,-150.0,7.797e-05,2]
[421112877,1777074632324,-1700.0,7.8e-05,2]
[421112878,1777074632334,-150.0,7.803e-05,2]
[421112879,1777074632343,-150.0,7.803e-05,2]
[421112880,1777074632355,-150.0,7.825e-05,2]
[421112881,1777074632364,-150.0,7.835e-05,2]
[421112882,1777074632375,-150.0,7.868e-05,2]
[421112883,1777074632385,-150.0,7.868e-05,2]
[421112884,1777074632394,-150.0,7.881e-05,2]
[421112885,1777074632404,-150.0,7.9e-05,2]
[421112886,1777074632413,-3500.0,7.9e-05,2]
[421112887,1777074632423,-150.0,7.918e-05,2]
[421112888,1777074632433,-150.0,7.932e-05,2]
[421112889,1777074632443,-150.0,7.932e-05,2]
[421112890,1777074632453,-150.0,7.932e-05,2]
[421112891,1777074632462,-150.0,7.964e-05,2]
[421112892,1777074632472,-150.0,7.964e-05,2]
[421112893,1777074632483,-150.0,7.964e-05,2]
[421112894,1777074632492,-150.0,7.964e-05,2]
[421112895,1777074632501,-150.0,7.964e-05,2]
[421112896,1777074632516,-150.0,7.997e-05,2]
[421112897,1777074632530,-150.0,7.997e-05,2]
[421112898,1777074632541,-5200.0,8e-05,2]
[421112899,1777074632552,-150.0,8.011e-05,2]
[421112900,1777074632563,-150.0,8.029e-05,2]
[421112901,1777074632572,-150.0,8.048e-05,2]
[421112902,1777074632582,-150.0,8.061e-05,2]
[421112903,1777074632592,-150.0,8.061e-05,2]
[421112904,1777074632602,-150.0,8.093e-05,2]
[421112905,1777074632611,-150.0,8.104e-05,2]
[421112906,1777074632621,-150.0,8.126e-05,2]
[421112907,1777074632630,-150.0,8.126e-05,2]
[421112908,1777074632640,-150.0,8.132e-05,2]
[421112909,1777074632650,-150.0,8.149e-05,2]
[421112910,1777074632660,-150.0,8.158e-05,2]
[421112911,1777074632670,-150.0,8.174e-05,2]
[421112912,1777074632680,-150.0,8.19e-05,2]
[421112913,1777074632689,-150.0,8.19e-05,2]
[421112914,1777074632699,-150.0,8.197e-05,2]
[421112915,1777074632709,-150.0,8.216e-05,2]
[421112916,1777074632721,-280.0,8.219e-05,2]
[421112917,1777074632733,-500.0,8.219e-05,2]
[421112918,1777074632743,-150.0,8.222e-05,2]
[421112919,1777074632754,-150.0,8.255e-05,2]
[421112920,1777074632763,-150.0,8.255e-05,2]
[421112921,1777074632774,-150.0,8.287e-05,2]
[421112922,1777074632783,-150.0,8.29e-05,2]
[421112923,1777074632793,-420.0,8.299e-05,2]
[421112924,1777074632802,-1680.0,8.299e-05,2]
[421112925,1777074632812,-150.0,8.3e-05,2]
[421112926,1777074632822,-1969.11212341,8.3e-05,2]
[421112927,1777074632831,-150.0,8.319e-05,2]
[421112928,1777074632841,-150.0,8.319e-05,2]
[421112929,1777074632850,-150.0,8.351e-05,2]
[421112930,1777074632860,-157.38550777,8.384e-05,2]
[421112931,1777074632870,-150.0,8.384e-05,2]
[421112932,1777074632879,-158.65291331,8.384e-05,2]
[421112933,1777074632889,-280.7086808,8.384e-05,2]
[421112934,1777074632899,-150.1908536,8.384e-05,2]
[421112935,1777074632908,-167.89924726,8.384e-05,2]
[421112936,1777074632918,-156.08110581,8.384e-05,2]
[421112937,1777074632927,-156.4221754,8.384e-05,2]
[421112938,1777074632937,-156.70793094,8.384e-05,2]
[421112939,1777074632946,-184.24556778,8.384e-05,2]
[421112940,1777074632956,-250.0,8.395e-05,2]
[421112941,1777074632966,-315988.80260311,8.397e-05,2]
[421112942,1777074632980,-84772.76403754,8.397e-05,2]
[421112943,1777074632991,-118665.77890479,8.397e-05,2]
[421112944,1777074633003,-1254.41808677,8.397e-05,2]
[421112945,1777074633023,-376.36,8.397e-05,2]
[421112946,1777074633034,-706.95471448,8.397e-05,2]
[421112949,1777074638300,-46325.03944314,8.397e-05,2]
[421112950,1777074638311,-1287.1,8.397e-05,2]
[421112966,1777074639974,-12261.14410848,8.397e-05,2]
[421112967,1777074639986,-422.89223244,8.397e-05,2]
[421112968,1777074639997,-2371.50323183,8.397e-05,2]
[421112969,1777074640085,-616.0,8.397e-05,2]
[421112970,1777074640097,-1219.17117707,8.397e-05,2]
[421112971,1777074640160,-542.688,8.397e-05,2]
[421112972,1777074640454,-492.65507974,8.397e-05,2]
[421112973,1777074640509,-883.15138334,8.397e-05,2]
[421112977,1777074643072,-987.61314542,8.397e-05,2]
[421112978,1777074643125,-366737.27055991,8.397e-05,2]
[421112979,1777074643136,-33070.48642795,8.397e-05,2]
[421112990,1777074646307,-4387.97121939,8.397e-05,2]
[421113004,1777075832337,-823.641,7.446e-05,2]
[421113023,1777075838453,-376.359,7.446e-05,2]
[421113024,1777075838463,-300.0,7.446e-05,2]
[421113025,1777075838475,-150.0,7.447e-05,2]
[421113026,1777075838484,-150.0,7.447e-05,2]
[421113027,1777075838494,-150.0,7.447e-05,2]
[421113028,1777075838504,-150.0,7.447e-05,2]
[421113029,1777075838513,-150.0,7.447e-05,2]
[421113030,1777075838523,-39.89618156,7.447e-05,2]
[421113031,1777075838535,-111.05077142,7.447e-05,2]
[421113032,1777075838544,-150.0,7.447e-05,2]
[421113033,1777075838554,-150.0,7.447e-05,2]
[421113034,1777075838563,-150.0,7.447e-05,2]
[421113035,1777075838573,-150.0,7.447e-05,2]
[421113036,1777075838582,-150.0,7.447e-05,2]
[421113037,1777075838592,-150.0,7.539e-05,2]
[421113038,1777075838601,-150.0,7.565e-05,2]
[421113039,1777075838616,-150.0,7.63e-05,2]
[421113040,1777075838626,-150.0,7.653e-05,2]
[421113041,1777075838635,-150.0,7.683e-05,2]
[421113042,1777075838645,-150.0,7.722e-05,2]
[421113043,1777075838654,-1500.0,7.8e-05,2]
[421113044,1777075838663,-150.0,7.801e-05,2]
[421113045,1777075838673,-150.0,7.814e-05,2]
[421113046,1777075838683,-150.0,7.86e-05,2]
[421113047,1777075838693,-150.0,7.86e-05,2]
[421113048,1777075838702,-150.0,7.86e-05,2]
[421113049,1777075838711,-3000.0,7.9e-05,2]
[421113050,1777075838720,-196.25432338,7.9e-05,2]
[421113051,1777075838730,-426.98625817,7.9e-05,2]
[421113052,1777075838740,-150.0,7.906e-05,2]
[421113054,1777075838751,-445.0,7.913e-05,2]
[421113056,1777075838760,-239.0,7.913e-05,2]
[421113058,1777075838770,-150.0,7.919e-05,2]
[421113060,1777075838780,-150.0,7.998e-05,2]
[421113062,1777075838789,-4500.0,8e-05,2]
[421113064,1777075838798,-150.0,8.038e-05,2]
[421113067,1777075838808,-3490.28961984,8.061e-05,2]
[421113069,1777075838816,-150.0,8.067e-05,2]
[421113071,1777075838830,-150.0,8.09e-05,2]
[421113073,1777075838839,-5301.111,8.131e-05,2]
[421113075,1777075838849,-373.224,8.131e-05,2]
[421113077,1777075838858,-150.0,8.156e-05,2]
[421113079,1777075838868,-150.0,8.182e-05,2]
[421113081,1777075838877,-1680.0,8.19e-05,2]
[421113083,1777075838887,-420.0,8.19e-05,2]
[421113086,1777075838896,-150.0,8.218e-05,2]
[421113088,1777075838906,-500.0,8.219e-05,2]
[421113090,1777075838915,-500.0,8.219e-05,2]
[421113092,1777075838925,-500.0,8.219e-05,2]
[421113094,1777075838934,-500.0,8.219e-05,2]
[421113096,1777075838943,-500.0,8.219e-05,2]
[421113098,1777075838952,-500.0,8.219e-05,2]
[421113100,1777075838962,-500.0,8.219e-05,2]
[421113102,1777075838971,-500.0,8.219e-05,2]
[421113104,1777075838980,-500.0,8.219e-05,2]
[421113106,1777075838990,-500.0,8.219e-05,2]
[421113108,1777075838999,-500.0,8.219e-05,2]
[421113110,1777075839009,-500.0,8.219e-05,2]
[421113112,1777075839018,-500.0,8.219e-05,2]
[421113114,1777075839028,-500.0,8.219e-05,2]
[421113116,1777075839037,-500.0,8.219e-05,2]
[421113118,1777075839047,-500.0,8.219e-05,2]
[421113120,1777075839056,-500.0,8.219e-05,2]
[421113122,1777075839065,-500.0,8.219e-05,2]
[421113124,1777075839075,-500.0,8.219e-05,2]
[421113125,1777075839084,-500.0,8.219e-05,2]
[421113127,1777075839094,-500.0,8.219e-05,2]
[421113128,1777075839103,-500.0,8.219e-05,2]
[421113129,1777075839112,-500.0,8.219e-05,2]
[421113130,1777075839122,-500.0,8.219e-05,2]
[421113131,1777075839131,-500.0,8.219e-05,2]
[421113132,1777075839140,-283.48278788,8.219e-05,2]
[421113133,1777075839150,-500.0,8.219e-05,2]
[421113134,1777075839159,-500.0,8.219e-05,2]
[421113135,1777075839169,-500.0,8.219e-05,2]
[421113136,1777075839178,-500.0,8.219e-05,2]
[421113137,1777075839188,-500.0,8.219e-05,2]
[421113138,1777075839197,-450.0,8.219e-05,2]
[421113139,1777075839207,-500.0,8.219e-05,2]
[421113140,1777075839221,-450.0,8.219e-05,2]
[421113141,1777075839230,-500.0,8.219e-05,2]
[421113142,1777075839240,-450.0,8.219e-05,2]
[421113143,1777075839250,-373.5381486,8.219e-05,2]
[421113144,1777075839264,-126.4618514,8.219e-05,2]
[421113145,1777075839273,-450.0,8.219e-05,2]
[421113146,1777075839283,-500.0,8.219e-05,2]
[421113147,1777075839293,-450.0,8.219e-05,2]
[421113148,1777075839303,-500.0,8.219e-05,2]
[421113149,1777075839312,-450.0,8.219e-05,2]
[421113150,1777075839322,-500.0,8.219e-05,2]
[421113151,1777075839332,-450.0,8.219e-05,2]
[421113152,1777075839342,-176.0,8.219e-05,2]
[421113153,1777075839351,-450.0,8.219e-05,2]
[421113154,1777075839362,-450.0,8.219e-05,2]
[421113155,1777075839372,-450.0,8.219e-05,2]
[421113156,1777075839381,-450.0,8.219e-05,2]
[421113157,1777075839391,-450.0,8.219e-05,2]
[421113158,1777075839401,-450.0,8.219e-05,2]
[421113159,1777075839411,-450.0,8.219e-05,2]
[421113160,1777075839421,-450.0,8.219e-05,2]
[421113161,1777075839430,-450.0,8.219e-05,2]
[421113162,1777075839440,-450.0,8.219e-05,2]
[421113163,1777075839452,-450.0,8.219e-05,2]
[421113164,1777075839462,-450.0,8.219e-05,2]
[421113165,1777075839472,-450.0,8.219e-05,2]
[421113166,1777075839481,-450.0,8.219e-05,2]
[421113167,1777075839491,-450.0,8.219e-05,2]
[421113168,1777075839500,-450.0,8.219e-05,2]
[421113169,1777075839510,-468.81732524,8.219e-05,2]
[421113170,1777075839519,-280.0,8.219e-05,2]
[421113171,1777075839529,-500.0,8.219e-05,2]
[421113172,1777075839538,-195.13225105,8.274e-05,2]
[421113173,1777075839548,-150.0,8.274e-05,2]
[421113174,1777075839558,-150.0,8.274e-05,2]
[421113175,1777075839567,-150.0,8.274e-05,2]
[421113176,1777075839576,-150.0,8.274e-05,2]
[421113177,1777075839586,-150.0,8.274e-05,2]
[421113178,1777075839596,-150.0,8.274e-05,2]
[421113179,1777075839606,-500.0,8.296e-05,2]
[421113180,1777075839616,-500.0,8.296e-05,2]
[421113181,1777075839625,-186.42794351,8.296e-05,2]
[421113182,1777075839635,-500.0,8.296e-05,2]
[421113183,1777075839645,-27.84791264,8.296e-05,2]
[421113184,1777075839658,-472.15208736,8.296e-05,2]
[421113185,1777075839667,-500.0,8.296e-05,2]
[421113186,1777075839678,-500.0,8.296e-05,2]
[421113187,1777075839691,-500.0,8.296e-05,2]
[421113188,1777075839703,-472.54076263,8.296e-05,2]
[421113189,1777075839713,-167.67454039,8.296e-05,2]
[421113190,1777075839723,-500.0,8.296e-05,2]
[421113191,1777075839733,-500.0,8.296e-05,2]
[421113192,1777075839743,-462.28423377,8.296e-05,2]
[421113193,1777075839754,-500.0,8.296e-05,2]
[421113194,1777075839763,-156.09927452,8.296e-05,2]
[421113195,1777075839780,-93.90072548,8.296e-05,2]
[421113196,1777075839791,-242.73969884,8.297e-05,2]
[421113197,1777075839804,-500.0,8.297e-05,2]
[421113206,1777075840848,-1933.47872742,8.297e-05,2]
[421113207,1777075840860,-2935.0,8.297e-05,2]
[421113215,1777075843211,-413.49594558,8.297e-05,2]
[421113216,1777075843223,-5315.1,8.297e-05,2]
[421113217,1777075843235,-3102.52633448,8.297e-05,2]
[421113218,1777075843247,-1250.10506771,8.297e-05,2]
[421113219,1777075843275,-254094.68356305,8.297e-05,2]
[421113220,1777075843287,-5733.99841523,8.297e-05,2]
[421113221,1777075843298,-38725.0,8.297e-05,2]
[421113222,1777075843371,-400.2,8.297e-05,2]
[421113223,1777075843426,-1203.55824115,8.297e-05,2]
[421113224,1777075843481,-261.98000005,8.297e-05,2]
[421113225,1777075843492,-4069.77402337,8.297e-05,2]
[421113226,1777075843505,-34909.74475922,8.297e-05,2]
[421113227,1777075843517,-388.81814311,8.297e-05,2]
[421113228,1777075843542,-681.76212011,8.297e-05,2]
[421113236,1777075846260,-180.05,8.256e-05,2]
[421113237,1777075846270,-400.08076346,8.297e-05,2]
[421113238,1777075846282,-387.372,8.297e-05,2]
[421113239,1777075846418,-1381537.27189722,8.297e-05,2]
[421113240,1777075846428,-500.0,8.373e-05,2]
[421113241,1777075846437,-500.0,8.373e-05,2]
[421113242,1777075846446,-500.0,8.373e-05,2]
[421113243,1777075846455,-500.0,8.373e-05,2]
[421113244,1777075846465,-500.0,8.373e-05,2]
[421113245,1777075846474,-500.21459105,8.373e-05,2]
[421113246,1777075846483,-151.0,8.394e-05,2]
[421113247,1777075846492,-151.0,8.394e-05,2]
[421113248,1777075846501,-151.0,8.394e-05,2]
[421113249,1777075846511,-151.0,8.394e-05,2]
[421113250,1777075846520,-1000.0,8.396e-05,2]
[421113251,1777075846529,-46100.5107036,8.396e-05,2]
[421113252,1777075846539,-128569.8805843,8.396e-05,2]
[421113253,1777075846549,-22453.2269827,8.396e-05,2]
[421113254,1777075846559,-500.0,8.397e-05,2]
[421113255,1777075846568,-156.0,8.397e-05,3]
[421113256,1777075846578,-864.98,8.402e-05,2]
[421113257,1777075846587,-261.0,8.418e-05,2]
[421113258,1777075846597,-12196.16974245,8.42e-05,2]
[421113259,1777075846607,-152.0,8.428e-05,7]
[421113260,1777075846617,-500.0,8.473e-05,2]
[421113261,1777075846626,-500.0,8.473e-05,2]
[421113262,1777075846638,-500.0,8.493e-05,2]
[421113263,1777075846647,-250.0,8.493e-05,2]
[421113264,1777075846657,-151.0,8.494e-05,2]
[421113265,1777075846667,-8712.1488548,8.497e-05,2]
[421113266,1777075846677,-2000.0,8.58e-05,3]
[421113267,1777075846686,-61401.0,8.658e-05,2]
[421113268,1777075846695,-500.0,8.673e-05,2]
[421113269,1777075846705,-247.81199177,8.697e-05,2]
[421113270,1777075846716,-8855.28778077,8.7e-05,2]
[421113271,1777075846726,-963099.71183383,8.7e-05,2]
[421113272,1777075846737,-151.0,8.7e-05,2]
[421113273,1777075846747,-151.0,8.7e-05,2]
[421113274,1777075846757,-898.439967,8.7e-05,2]
[421113275,1777075846768,-898.439967,8.7e-05,2]
[421113276,1777075846778,-898.439967,8.7e-05,2]
[421113277,1777075846788,-898.439967,8.7e-05,2]
[421113278,1777075846798,-151.0,8.7e-05,2]
[421113279,1777075846808,-151.0,8.7e-05,2]
[421113280,1777075846818,-151.0,8.7e-05,2]
[421113281,1777075846827,-151.0,8.7e-05,2]
[421113282,1777075846836,-151.0,8.7e-05,2]
[421113283,1777075846846,-500.0,8.767e-05,2]
[421113284,1777075846855,-259.0,8.773e-05,2]
[421113285,1777075846866,-1010.30622654,8.921e-05,2]
[421113286,1777075846875,-1073.65447908,8.921e-05,2]
[421113287,1777075846885,-472.61640263,8.921e-05,2]
[421113288,1777075846895,-1000.0,8.921e-05,2]
[421113289,1777075846904,-200.0,8.962e-05,2]
[421113290,1777075846914,-27699.47187737,9e-05,2]
[421113295,1777076685023,-1200.0,8.014e-05,2]
[421113296,1777076685057,-250.0,8.015e-05,2]
[421113297,1777076685090,-2859.122,8.015e-05,2]
[421113298,1777076685103,-1200.0,8.015e-05,2]
[421113299,1777076685125,-181.766,8.015e-05,2]
[421113300,1777076685135,-68.234,8.015e-05,2]
[421113301,1777076685151,-230.345,8.015e-05,2]
[421113302,1777076685161,-150.0,8.177e-05,2]
[421113303,1777076685171,-189.245309,8.177e-05,2]
[421113304,1777076685182,-500.0,8.177e-05,2]
[421113305,1777076685191,-330.49956045,8.177e-05,2]
[421113306,1777076685200,-355.92838305,8.177e-05,2]
[421113307,1777076685209,-527.84791264,8.177e-05,2]
[421113309,1777077031400,-150.0,7.545e-05,2]
[421113311,1777077031410,-150.0,7.545e-05,2]
[421113312,1777077031420,-150.0,7.545e-05,2]
[421113313,1777077031430,-150.0,7.545e-05,2]
[421113314,1777077031439,-150.0,7.545e-05,2]
[421113315,1777077031448,-150.0,7.545e-05,2]
[421113316,1777077031458,-150.0,7.545e-05,2]
[421113317,1777077031468,-151.0,7.735e-05,2]
[421113318,1777077031477,-150.0,7.825e-05,2]
[421113319,1777077031487,-1200.0,7.999e-05,2]
[421113320,1777077031497,-451.16045395,8e-05,2]
[421113321,1777077031509,-322.59321388,8e-05,2]
[421113322,1777077031524,-426.24633217,8e-05,2]
[421113323,1777077031533,-300.0,8.077e-05,2]
[421113324,1777077031542,-2910.46346531,8.078e-05,2]
[421113325,1777077031553,-500.91157275,8.078e-05,2]
[421113326,1777077031564,-306.30983667,8.078e-05,2]
[421113327,1777077031575,-1216.21092527,8.078e-05,2]
[421113328,1777077031584,-150.0,8.104e-05,2]
[421113329,1777077031594,-1000.0,8.177e-05,2]
[421113330,1777077031603,-150.0,8.218e-05,2]
[421113331,1777077031612,-500.0,8.219e-05,2]
[421113332,1777077031622,-500.0,8.219e-05,2]
[421113333,1777077031631,-373.59896364,8.219e-05,2]
[421113334,1777077031641,-500.0,8.219e-05,2]
[421113335,1777077031650,-500.0,8.219e-05,2]
[421113336,1777077031659,-500.0,8.219e-05,2]
[421113337,1777077031668,-500.0,8.219e-05,2]
[421113338,1777077031677,-500.0,8.219e-05,2]
[421113340,1777077031687,-500.0,8.219e-05,2]
[421113342,1777077031697,-500.0,8.219e-05,2]
[421113344,1777077031706,-500.0,8.219e-05,2]
[421113345,1777077031715,-450.0,8.219e-05,2]
[421113346,1777077031724,-500.0,8.219e-05,2]